[Event "FRA-ch Universities 2019"]
[Site "Paris"]
[Date "2019.02.03"]
[Round "7"]
[White "Eden, James"]
[Black "Sochacki, Wojtek"]
[Result "*"]
[ECO "B22"]
[WhiteElo "2338"]
[BlackElo "2348"]
[Annotator "NA"]
[PlyCount "128"]
[EventDate "2019.02.01"]
[EventType "swiss"]
[EventCountry "FRA"]
[SourceTitle "playchess.com"]
[Source "ChessBase"]
[SourceQuality "1"]
[TimeControl "900+5"]

1. e4 {[%emt 0:00:00]} c5 {[%emt 0:00:00]} 2. c3 {[%emt 0:00:30]} Nf6 {[%emt 0:00:00]} 3. e5 {[%emt 0:00:02]} Nd5 {[%emt 0:00:00]} 4. d4 {[%emt 0:00:03]} cxd4 {[%emt 0:00:00]} 5. Nf3 {[%emt 0:00:02]} Nc6 {[%emt 0:00:04]} 6. cxd4 {[%emt 0:00:03]} d6 {[%emt 0:00:01]} 7. Bc4 {[%emt 0:00:02]} dxe5 {[%emt 0:00:20]} 8. dxe5 {[%emt 0:00:40]} Ndb4 {[%emt 0:00:05]} 9. Qb3 {[%emt 0:01:04]} e6 {[%emt 0:00:06] B22: Sicilian: 2 c3} 10. O-O {[%emt 0:00:05]} Na5 {[%emt 0:01:26]} 11. Bb5+ {[%emt 0:00:34]} Bd7 {[%emt 0:00:20]} 12. Qa4 $1 {[%emt 0:00:04]} Bxb5 {[%emt 0:01:13]} 13. Qxb5+ {[%emt 0:00:03]} Nac6 {[%emt 0:00:01]} 14. Nc3 {[%emt 0:01:23]} a6 {[%emt 0:00:17]} 15. Qc4 {[%emt 0:01:24]} Qd3 {[%emt 0:00:06]} 16. Qf4 {[%emt 0:00:25]} Be7 {[%emt 0:05:00] [#]} 17. Be3 $146 {[%emt 0:00:14]} ({Predecessor:} 17. a3) 17... Qf5 {[%emt 0:01:50]} 18. Qxf5 {[%emt 0:00:43]} exf5 {[%emt 0:00:01]} 19. Rad1 {[%emt 0:00:18]} Rd8 {[%emt 0:01:55]} 20. Bb6 {[%emt 0:00:19]} Rxd1 {[%emt 0:00:32]} 21. Rxd1 {[%emt 0:00:03]} Bd8 {[%emt 0:00:19]} 22. Bc5 {[%emt 0:01:14]} Be7 {[%emt 0:00:09]} 23. Be3 {[%emt 0:00:06]} O-O {[%emt 0:01:10]} 24. a3 {[%emt 0:00:10]} Nc2 {[%emt 0:00:02]} 25. Bb6 {[%emt 0:00:03]} Rc8 {[%emt 0:00:47]} 26. Rc1 {[%emt 0:00:11]} Nxa3 {[%emt 0:00:40]} 27. Nd5 {[%emt 0:00:49]} Bf8 {[%emt 0:00:00]} 28. bxa3 {[%emt 0:00:02]} Bxa3 {[%emt 0:00:01]} 29. Rc3 {[%emt 0:00:13]} Bf8 {[%emt 0:00:06]} 30. Kf1 {[%emt 0:00:08]} Re8 {[%emt 0:00:05]} 31. Re3 {[%emt 0:00:30]} Rc8 {[%emt 0:00:19]} 32. e6 {[%emt 0:00:22]} fxe6 {[%emt 0:00:01]} 33. Rxe6 {[%emt 0:00:02]} h6 {[%emt 0:00:18]} 34. h4 {[%emt 0:00:23]} Kf7 {[%emt 0:00:02]} 35. Re2 {[%emt 0:00:08]} Bd6 {[%emt 0:00:03]} 36. h5 {[%emt 0:00:09]} f4 {[%emt 0:00:25]} 37. Re4 {[%emt 0:00:09]} Ne7 {[%emt 0:00:10]} 38. Nxe7 {[%emt 0:00:27]} Bxe7 {[%emt 0:00:00]} 39. Rxf4+ {[%emt 0:00:05]} Bf6 $18 {[%emt 0:00:01]} 40. Rb4 {[%emt 0:01:03]} Rc1+ {[%emt 0:00:16]} 41. Ke2 {[%emt 0:00:02]} Rc2+ {[%emt 0:00:01]} 42. Kd3 {[%emt 0:00:04]} Rc3+ {[%emt 0:00:02]} 43. Ke4 {[%emt 0:00:07]} Rc6 {[%emt 0:00:03]} 44. Ne5+ {[%emt 0:00:59]} Bxe5 {[%emt 0:00:01]} 45. Kxe5 {[%emt 0:00:03]} a5 {[%emt 0:00:04]} 46. Rb5 {[%emt 0:00:02]} a4 {[%emt 0:00:01]} 47. Bc5 {[%emt 0:00:11]} Rc7 {[%emt 0:00:07]} 48. Kd6 {[%emt 0:00:10]} Rc6+ {[%emt 0:00:02]} 49. Kd5 {[%emt 0:00:10]} Rc7 {[%emt 0:00:02]} 50. Ra5 {[%emt 0:00:11]} Rd7+ {[%emt 0:00:06]} 51. Bd6 {[%emt 0:00:03]} Kf6 {[%emt 0:00:06]} 52. Rxa4 {[%emt 0:00:16]} Kg5 {[%emt 0:00:01]} 53. Ke6 {[%emt 0:00:06]} b5 {[%emt 0:00:06]} 54. Rd4 {[%emt 0:01:28]} Ra7 {[%emt 0:00:08]} 55. Rd5+ {[%emt 0:00:33]} Kg4 {[%emt 0:00:03]} 56. Rxb5 {[%emt 0:00:06]} Ra2 {[%emt 0:00:03]} 57. Bg3 {[%emt 0:00:21]} Ra1 {[%emt 0:00:08]} 58. Kf7 {[%emt 0:00:04]} Rg1 {[%emt 0:00:02]} 59. Kxg7 {[%emt 0:00:13]} Rxg2 {[%emt 0:00:01]} 60. Kxh6 {[%emt 0:00:14]} Rg1 {[%emt 0:00:02]} 61. Kg6 {[%emt 0:00:07]} Rc1 {[%emt 0:00:05]} 62. Rb4+ {[%emt 0:00:06]} Kf3 {[%emt 0:00:01]} 63. Rf4+ {[%emt 0:00:03]} Kg2 {[%emt 0:00:02]} 64. h6 {[%emt 0:00:02]} Rc6+ {[%emt 0:00:03]} *

[Event "FRA-ch Universities 2019"]
[Site "Paris"]
[Date "2019.02.03"]
[Round "7"]
[White "Daeschler, Florian"]
[Black "Brunier, Jules"]
[Result "1-0"]
[ECO "D11"]
[WhiteElo "2276"]
[BlackElo "2015"]
[Annotator "NA"]
[PlyCount "75"]
[EventDate "2019.02.01"]
[EventType "swiss"]
[EventCountry "FRA"]
[SourceTitle "playchess.com"]
[Source "ChessBase"]
[SourceQuality "1"]
[TimeControl "900+5"]

1. d4 {[%emt 0:00:00]} d5 {[%emt 0:00:00]} 2. c4 {[%emt 0:00:00]} c6 {[%emt 0:00:02]} 3. Nf3 {[%emt 0:00:00]} Nf6 {[%emt 0:00:02]} 4. e3 {[%emt 0:00:02]} Bg4 {[%emt 0:00:21]} 5. h3 {[%emt 0:00:01]} Bh5 {[%emt 0:00:01]} 6. g4 {[%emt 0:00:01]} Bg6 {[%emt 0:00:01]} 7. Ne5 {[%emt 0:00:02]} e6 {[%emt 0:00:22]} 8. Nd2 {[%emt 0:00:05]} Bd6 {[%emt 0:00:07]} 9. Nxg6 {[%emt 0:00:14]} hxg6 {[%emt 0:00:02]} 10. Bg2 {[%emt 0:00:01]} Nbd7 {[%emt 0:00:39]} 11. O-O {[%emt 0:00:17]} g5 {[%emt 0:02:58]} 12. Re1 {[%emt 0:00:08]} Nf8 {[%emt 0:00:26]} 13. e4 {[%emt 0:01:06]} dxe4 {[%emt 0:01:10]} 14. Nxe4 {[%emt 0:00:01]} Nxe4 {[%emt 0:00:01]} 15. Rxe4 {[%emt 0:00:02]} Ng6 $1 {[%emt 0:00:47]} 16. Qb3 {[%emt 0:00:48]} b6 {[%emt 0:01:55]} ({Black should try} 16... Qe7 $11) 17. d5 {[%emt 0:05:43]} cxd5 {[%emt 0:00:06]} 18. cxd5 {[%emt 0:00:07]} e5 {[%emt 0:00:03]} 19. Qb5+ {[%emt 0:00:34]} Kf8 {[%emt 0:00:03]} 20. Bd2 {[%emt 0:00:40]} Nf4 {[%emt 0:00:55]} 21. Rc1 {[%emt 0:00:18]} g6 {[%emt 0:00:48]} 22. Rc6 {[%emt 0:01:07]} Kg7 {[%emt 0:00:04]} 23. Bc3 {[%emt 0:00:21]} f6 {[%emt 0:00:40]} 24. Qa6 {[%emt 0:00:41]} Nxh3+ {[%emt 0:00:24]} 25. Bxh3 {[%emt 0:00:26]} Rxh3 {[%emt 0:00:03]} 26. Qb7+ {[%emt 0:00:01]} Kh6 {[%emt 0:00:03]} 27. Rxd6 {[%emt 0:00:33]} Qxd6 {[%emt 0:01:15]} 28. Qxa8 {[%emt 0:00:02]} Kh7 {[%emt 0:00:18]} 29. Qc6 {[%emt 0:00:11]} Qf8 {[%emt 0:00:10]} 30. Qd7+ {[%emt 0:00:11]} Kh6 {[%emt 0:00:31]} 31. d6 {[%emt 0:00:26]} f5 {[%emt 0:00:28]} 32. Qe7 {[%emt 0:00:24]} Qa8 {[%emt 0:00:17]} 33. Qxe5 {[%emt 0:00:03]} Qg8 {[%emt 0:02:01]} 34. gxf5 {[%emt 0:00:44]} gxf5 {[%emt 0:00:33]} 35. Qxf5 {[%emt 0:00:11]} Rh4 {[%emt 0:00:10]} 36. Qf6+ {[%emt 0:00:28]} Kh5 {[%emt 0:00:02]} 37. Qh8+ {[%emt 0:00:08]} Qxh8 {[%emt 0:00:05]} 38. Rxh4+ {[%emt 0:00:01]} 1-0

[Event "FRA-ch Universities 2019"]
[Site "Paris"]
[Date "2019.02.03"]
[Round "7"]
[White "Graca, Robert"]
[Black "Dumas, Charles"]
[Result "1-0"]
[ECO "A05"]
[WhiteElo "2270"]
[BlackElo "2218"]
[Annotator "NA"]
[PlyCount "79"]
[EventDate "2019.02.01"]
[EventType "swiss"]
[EventCountry "FRA"]
[SourceTitle "playchess.com"]
[Source "ChessBase"]
[SourceQuality "1"]
[TimeControl "900+5"]

1. Nf3 {[%emt 0:00:00]} Nf6 {[%emt 0:00:00]} 2. c4 {[%emt 0:00:00]} b6 {[%emt 0:00:09]} 3. g3 {[%emt 0:00:01]} Bb7 {[%emt 0:00:01]} 4. Bg2 {[%emt 0:00:02]} d6 {[%emt 0:00:07]} 5. d4 {[%emt 0:00:32]} g6 {[%emt 0:00:09]} 6. O-O {[%emt 0:00:11]} Bg7 {[%emt 0:00:02]} 7. Nc3 {[%emt 0:00:37]} O-O {[%emt 0:00:09]} 8. Qc2 {[%emt 0:00:24]} Nbd7 {[%emt 0:00:03]} 9. e4 {[%emt 0:00:41]} e5 {[%emt 0:00:10]} 10. d5 {[%emt 0:00:16]} a5 {[%emt 0:00:20]} 11. Bd2 {[%emt 0:00:31]} Bc8 {[%emt 0:01:00]} 12. a3 {[%emt 0:00:35]} Nh5 {[%emt 0:01:52]} 13. b4 {[%emt 0:00:39]} f5 {[%emt 0:00:47]} 14. Ng5 {[%emt 0:01:04]} Ndf6 {[%emt 0:00:22]} 15. exf5 {[%emt 0:02:35]} Bxf5 {[%emt 0:00:33]} 16. Nce4 {[%emt 0:00:37]} (16. Qb3 $16) 16... Qe7 {[%emt 0:00:42]} 17. bxa5 {[%emt 0:01:35]} bxa5 {[%emt 0:00:14]} 18. c5 {[%emt 0:00:01]} Kh8 {[%emt 0:01:21]} 19. Qc4 {[%emt 0:01:31]} Nxe4 {[%emt 0:01:08]} 20. Nxe4 {[%emt 0:00:10]} Nf6 {[%emt 0:01:11]} 21. Rab1 {[%emt 0:00:48]} Nxe4 {[%emt 0:00:48]} 22. Bxe4 {[%emt 0:00:01]} Bxe4 {[%emt 0:00:26]} 23. Qxe4 {[%emt 0:00:01]} dxc5 {[%emt 0:00:01]} 24. Be3 {[%emt 0:00:27]} a4 {[%emt 0:01:35]} 25. Qc4 {[%emt 0:00:38]} Rf3 {[%emt 0:00:53]} 26. Bxc5 {[%emt 0:00:14]} Qf7 {[%emt 0:00:01]} 27. Rb7 {[%emt 0:00:27]} Rd8 {[%emt 0:00:09]} 28. Rd1 {[%emt 0:00:46]} h5 {[%emt 0:00:44]} 29. Be3 {[%emt 0:00:29]} Rd7 {[%emt 0:00:00]} 30. Qxa4 $18 Rxd5 {[%emt 0:00:26]} 31. Rxd5 {[%emt 0:00:36]} Qxd5 {[%emt 0:00:02]} 32. Rxc7 {[%emt 0:00:02]} Rf8 {[%emt 0:01:14]} 33. Qd7 {[%emt 0:00:11]} Qxd7 {[%emt 0:00:17]} 34. Rxd7 {[%emt 0:00:01]} Ra8 {[%emt 0:00:11]} 35. Ra7 {[%emt 0:00:01]} Rc8 {[%emt 0:00:28]} 36. a4 {[%emt 0:00:08]} Kg8 {[%emt 0:00:01]} 37. a5 {[%emt 0:00:05]} Rc2 {[%emt 0:00:05]} 38. a6 {[%emt 0:00:08]} Ra2 {[%emt 0:00:01]} 39. Ra8+ {[%emt 0:00:09]} Kf7 {[%emt 0:00:16]} 40. a7 {[%emt 0:00:05]} 1-0

[Event "FRA-ch Universities 2019"]
[Site "Paris"]
[Date "2019.02.03"]
[Round "7"]
[White "Lutard, Theo"]
[Black "Kern, Nicolas"]
[Result "*"]
[ECO "B40"]
[WhiteElo "2222"]
[BlackElo "2101"]
[Annotator "NA"]
[PlyCount "133"]
[EventDate "2019.02.01"]
[EventType "swiss"]
[EventCountry "FRA"]
[SourceTitle "playchess.com"]
[Source "ChessBase"]
[SourceQuality "1"]
[TimeControl "900+5"]

1. e4 {[%emt 0:00:00]} c5 {[%emt 0:03:46]} 2. Nf3 {[%emt 0:00:00]} e6 {[%emt 0:00:02]} 3. g3 {[%emt 0:00:07]} Nc6 {[%emt 0:00:31]} 4. Bg2 {[%emt 0:00:03]} b5 {[%emt 0:01:18]} (4... Nf6 5. d3 d5 6. Qe2 Be7 7. e5 Nd7 8. c4 b5 9. cxd5 exd5 10. Nc3 Ndb8 11. O-O b4 12. Na4 Bg4 13. Be3 Nd7 14. h3 Be6 {1-0 (43) Adams,M (2712)-Vocaturo,D (2615) Batumi 2018}) 5. d4 {[%emt 0:01:03]} cxd4 {[%emt 0:00:15]} 6. Nxd4 {[%emt 0:00:02] B40: Sicilian: 2...e6, Unusual lines} Nxd4 {[%emt 0:02:16]} 7. Qxd4 {[%emt 0:00:02]} Ne7 $146 {[%emt 0:00:45]} ({Predecessor:} 7... Bb7 8. O-O Ne7 9. Qd3 b4 10. Nd2 Nc6 11. Nc4 Bc5 12. Be3 Bxe3 {1-0 (35) Fontaine,Q (2269)-Grochal,J (2201) Belgium 2017}) 8. Qd3 {[%emt 0:03:15]} b4 {[%emt 0:01:46]} 9. O-O {[%emt 0:01:44]} Nc6 {[%emt 0:00:14]} 10. Nd2 {[%emt 0:01:10]} a5 {[%emt 0:00:35]} 11. Rd1 {[%emt 0:00:16]} Be7 {[%emt 0:01:03]} 12. Nc4 {[%emt 0:01:27]} O-O {[%emt 0:00:02]} 13. Qe3 {[%emt 0:01:26]} Rb8 {[%emt 0:00:54]} 14. e5 {[%emt 0:00:28]} Qc7 {[%emt 0:00:55]} 15. Qf4 {[%emt 0:01:36]} Rb5 {[%emt 0:00:19]} 16. Re1 {[%emt 0:01:06]} Ba6 {[%emt 0:00:01]} 17. b3 {[%emt 0:01:14]} f6 {[%emt 0:00:48]} 18. exf6 {[%emt 0:00:18]} Qxf4 {[%emt 0:00:02]} 19. Bxf4 {[%emt 0:00:03]} Bxf6 {[%emt 0:00:07]} 20. Rad1 {[%emt 0:00:10]} Nd4 {[%emt 0:00:11]} 21. Rd2 $14 {[%emt 0:00:45]} d5 {[%emt 0:00:30]} 22. Ne5 {[%emt 0:00:21]} Rc8 {[%emt 0:00:08]} 23. Rxd4 {[%emt 0:00:05]} Rxc2 {[%emt 0:00:03]} 24. Rd2 {[%emt 0:00:02]} Rc8 {[%emt 0:00:03]} 25. h4 {[%emt 0:00:16]} Rbc5 {[%emt 0:00:02]} 26. Red1 {[%emt 0:00:02]} Rc3 {[%emt 0:00:06]} 27. Bh3 {[%emt 0:00:03]} Re8 {[%emt 0:00:05]} 28. Ng4 {[%emt 0:00:04]} Bd8 {[%emt 0:00:06]} 29. Re1 {[%emt 0:00:02]} Kf7 {[%emt 0:00:06]} 30. Ne5+ {[%emt 0:00:02]} Kg8 {[%emt 0:00:13]} 31. Ng4 {[%emt 0:00:01]} Bc8 {[%emt 0:00:04]} 32. Rxd5 {[%emt 0:00:04]} Rc2 {[%emt 0:00:04]} 33. Rd2 {[%emt 0:00:06]} Rc3 {[%emt 0:00:09]} 34. Be5 {[%emt 0:00:02]} Rf3 {[%emt 0:00:06]} 35. Bg2 {[%emt 0:00:06]} Rf7 {[%emt 0:00:03]} 36. Bf4 {[%emt 0:00:12]} Bb6 {[%emt 0:00:03]} 37. Ne5 {[%emt 0:00:02]} Rfe7 {[%emt 0:00:14]} 38. Nc4 {[%emt 0:00:01]} Bc5 {[%emt 0:00:07]} 39. Nd6 {[%emt 0:00:06]} Rf8 {[%emt 0:00:02]} 40. Nxc8 {[%emt 0:00:05]} Rxc8 41. Bh3 {[%emt 0:00:03]} Kf7 {[%emt 0:00:03]} 42. Bd6 {[%emt 0:00:08]} Rd8 {[%emt 0:00:05]} 43. Bxe7 {[%emt 0:00:06]} Rxd2 {[%emt 0:00:01]} 44. Bxc5 {[%emt 0:00:02]} Rxa2 {[%emt 0:00:01]} 45. Bb6 {[%emt 0:00:02]} a4 {[%emt 0:00:01]} 46. bxa4 Rxa4 {[%emt 0:00:03]} 47. Rb1 {[%emt 0:00:16]} e5 {[%emt 0:00:13]} 48. Bf1 {[%emt 0:00:02]} Ke6 {[%emt 0:00:03]} 49. Bc4+ {[%emt 0:00:03]} Kd6 {[%emt 0:00:01]} 50. Be3 {[%emt 0:00:04]} Kc6 {[%emt 0:00:09]} 51. Bd2 {[%emt 0:00:03]} Kc5 {[%emt 0:00:00]} 52. Bg8 {[%emt 0:00:11]} h6 {[%emt 0:00:03]} 53. Bxb4+ {[%emt 0:00:03]} Kc6 {[%emt 0:00:16]} 54. Bc3 {[%emt 0:00:04]} Re4 {[%emt 0:00:15]} 55. Kg2 {[%emt 0:00:07]} Kc5 56. Kf3 {[%emt 0:00:04]} Ra4 {[%emt 0:00:06]} 57. Bxe5 {[%emt 0:00:03]} Ra8 58. Bh7 {[%emt 0:00:03]} g5 {[%emt 0:00:04]} 59. hxg5 {[%emt 0:00:02]} hxg5 {[%emt 0:00:01]} 60. Kg4 {[%emt 0:00:02]} Kd5 {[%emt 0:00:03]} 61. Re1 {[%emt 0:00:03]} Rf8 {[%emt 0:00:05]} 62. f4 {[%emt 0:00:06]} gxf4 {[%emt 0:00:01]} 63. gxf4 {[%emt 0:00:01]} Rf7 {[%emt 0:00:01]} 64. Bg6 {[%emt 0:00:02]} Ra7 {[%emt 0:00:00]} 65. f5 {[%emt 0:00:03]} Ra4+ {[%emt 0:00:02]} 66. Kg5 {[%emt 0:00:01]} Ra2 {[%emt 0:00:01]} 67. Bf7+ *

[Event "FRA-ch Universities 2019"]
[Site "Paris"]
[Date "2019.02.03"]
[Round "7"]
[White "Viers, Emmanuel"]
[Black "Geronimi, Pierre-Francois"]
[Result "*"]
[ECO "A40"]
[WhiteElo "2199"]
[BlackElo "2042"]
[Annotator "NA"]
[PlyCount "120"]
[EventDate "2019.02.01"]
[EventType "swiss"]
[EventCountry "FRA"]
[SourceTitle "playchess.com"]
[Source "ChessBase"]
[SourceQuality "1"]
[TimeControl "900+5"]

1. d4 {[%emt 0:00:00]} g6 {[%emt 0:00:00]} 2. Nc3 {[%emt 0:00:08]} Bg7 {[%emt 0:00:00]} 3. e4 {[%emt 0:00:00]} a6 {[%emt 0:00:04]} 4. Be3 {[%emt 0:00:21]} d6 {[%emt 0:00:02]} 5. Be2 {[%emt 0:00:20]} b5 {[%emt 0:00:03]} 6. a3 {[%emt 0:00:03]} Bb7 {[%emt 0:00:03]} 7. Nf3 {[%emt 0:01:23]} Nd7 {[%emt 0:00:02]} 8. O-O {[%emt 0:00:14]} c5 {[%emt 0:01:28]} 9. Re1 {[%emt 0:01:45]} cxd4 {[%emt 0:01:21]} 10. Bxd4 {[%emt 0:02:26]} Ngf6 {[%emt 0:00:16]} 11. Nd5 {[%emt 0:01:45]} (11. e5 $11 dxe5 12. Nxe5) 11... O-O 12. Nxf6+ Nxf6 {[%emt 0:00:45]} 13. e5 {[%emt 0:00:06]} dxe5 {[%emt 0:01:08]} 14. Bxe5 {[%emt 0:00:01]} Rc8 {[%emt 0:01:15]} 15. c3 {[%emt 0:00:28]} Qb6 {[%emt 0:01:04]} 16. Bd4 {[%emt 0:00:15]} Qc6 {[%emt 0:00:01]} 17. a4 {[%emt 0:00:35]} Nh5 {[%emt 0:05:32]} 18. Bxg7 {[%emt 0:01:09]} Kxg7 {[%emt 0:00:01]} 19. axb5 {[%emt 0:00:18]} axb5 {[%emt 0:00:01]} 20. Qd4+ {[%emt 0:01:03]} Kg8 {[%emt 0:00:01]} 21. Qb4 {[%emt 0:00:02]} Qf6 {[%emt 0:00:22]} 22. Qxb5 {[%emt 0:00:29]} Rb8 {[%emt 0:00:09]} 23. Qd3 {[%emt 0:02:23]} Nf4 {[%emt 0:00:07]} 24. Qe3 {[%emt 0:00:10]} Nxe2+ {[%emt 0:00:39]} 25. Rxe2 {[%emt 0:00:02]} e6 {[%emt 0:00:13]} 26. Nd4 {[%emt 0:00:19]} Bd5 {[%emt 0:00:21]} 27. b4 {[%emt 0:00:30]} Rfc8 $16 {[%emt 0:00:04]} 28. Rc1 {[%emt 0:00:16]} h5 {[%emt 0:00:42]} 29. f3 {[%emt 0:00:01]} Kh7 {[%emt 0:00:22]} 30. Rec2 {[%emt 0:00:05]} Bc4 {[%emt 0:00:36]} 31. Ne2 {[%emt 0:00:02]} Qf5 {[%emt 0:00:24]} 32. Ng3 {[%emt 0:00:11]} Qb5 {[%emt 0:00:21]} 33. Ne4 {[%emt 0:00:11]} Qb6 {[%emt 0:00:03]} 34. Nc5 {[%emt 0:00:28]} Rd8 {[%emt 0:00:08]} 35. Rd2 {[%emt 0:00:19]} Rxd2 {[%emt 0:00:07]} 36. Qxd2 {[%emt 0:00:01]} Rd8 {[%emt 0:00:00]} 37. Qe3 {[%emt 0:00:01]} Qc7 {[%emt 0:00:13]} 38. Re1 {[%emt 0:00:01]} Bb5 {[%emt 0:00:03]} 39. Qe4 {[%emt 0:00:11]} Bc6 {[%emt 0:00:05]} 40. Qe5 {[%emt 0:00:03]} Qxe5 {[%emt 0:00:07]} 41. Rxe5 {[%emt 0:00:01]} Rd2 {[%emt 0:00:00]} 42. Ne4 {[%emt 0:00:10]} Rc2 {[%emt 0:00:06]} 43. Rc5 {[%emt 0:00:01]} Bd5 {[%emt 0:00:06]} 44. Nf6+ {[%emt 0:00:02]} Kg7 {[%emt 0:00:00]} 45. Nxd5 {[%emt 0:00:01]} exd5 {[%emt 0:00:01]} 46. b5 {[%emt 0:00:10]} Kf6 {[%emt 0:00:05]} 47. b6 {[%emt 0:00:09]} Rb2 {[%emt 0:00:08]} 48. Rxd5 {[%emt 0:00:02]} Rxb6 {[%emt 0:00:01]} 49. Rd1 {[%emt 0:00:01]} Ke5 {[%emt 0:00:05]} 50. Rd2 {[%emt 0:00:10]} Rc6 {[%emt 0:00:08]} 51. Rc2 {[%emt 0:00:02]} Kd5 {[%emt 0:00:01]} 52. Kf2 {[%emt 0:00:02]} Kc4 {[%emt 0:00:01]} 53. Ke3 {[%emt 0:00:03]} Rf6 {[%emt 0:00:21]} 54. Rc1 {[%emt 0:00:10]} Rf5 {[%emt 0:00:02]} 55. Ke4 {[%emt 0:00:03]} Rg5 {[%emt 0:00:01]} 56. g3 {[%emt 0:00:03]} Rd5 {[%emt 0:00:02]} 57. h3 {[%emt 0:00:12]} g5 {[%emt 0:00:14]} 58. f4 {[%emt 0:00:09]} f5+ {[%emt 0:00:01]} 59. Kf3 {[%emt 0:00:11]} Rd3+ {[%emt 0:00:01]} 60. Kf2 {[%emt 0:00:01]} gxf4 {[%emt 0:00:02]} *